Cogmind - Beta 16 @@@ ROGUE MODE // 2025.11.09 @ 22:49:52 Player: JuustuToug Result: Destroyed self with Improved Grenade Launcher Performance ------------- Evolutions (3) 1500 Regions Visited (13) 2600 Robots Destroyed (277) 1385 Value Destroyed (10354) 10354 Prototype IDs (39) 780 Alien Tech Used (0) 0 Bonus (4560) 4560 TOTAL SCORE: 21179 Bonus ------- High Alert Combat Kills 2156 Follower Combat Kills 749 Entered Garrisons 400 Used RIF Installer 1000 Aligned with FarCom 300 Friendly Fire -45 Cogmind --------- Core Integrity 0/700 Matter 190/300 Energy 290/290 System Corruption 22% Temperature Cool (4) Movement Treading (360) Ox5 Location -7/Lower Caves Parts ------- > --- POWER (1) -------- Improved Deuterium Engine > --- PROPULSION (4) --- Light Treads Aluminum Leg > --- UTILITY (5) ------ Improved Heat Sink Huge Storage Unit Improved Terrain Scanner Advanced Terrain Scan Processor Advanced Targeting Computer > --- WEAPON (3) ------- Improved EM Pulse Cannon Plasma Cannon > --- INVENTORY (25) --- Makeshift Power Source Light Treads Transmission Jammer Transmission Jammer Advanced Phase Shifter Hardened Heavy Armor Plating Improved Light Armor Plating Improved Light Armor Plating Improved Light Armor Plating Improved Light Armor Plating Improved Light Armor Plating Medium Reactive Plating Relay Coupler [NC] (27) Relay Coupler [Sentry] (24) Relay Coupler [Hunter] (17) Relay Coupler [Behemoth] (11) Advanced EMP Blaster Remote Datajack Great Axe Spear Peak State ------------ > --- POWER ------------ Reinforced Deuterium Engine > --- PROPULSION ------- Armored Treads Advanced Treads Advanced Treads Advanced Treads > --- UTILITY ---------- Improved Cooling System Huge Storage Unit Advanced Targeting Computer Transmission Jammer Hacking Suite > --- WEAPON ----------- Heavy Ion Cannon Heavy Ion Cannon Precision Assault Rifle > --- INVENTORY -------- Heavy Deuterium Engine Light Treads Light Treads Light Treads Advanced Treads Improved Heat Sink Huge Storage Unit Improved Signal Interpreter Terrain Scanner Advanced Terrain Scan Processor Hardened Heavy Armor Plating Relay Coupler [NC] Relay Coupler [Grunt] Relay Coupler [Sentry] Relay Coupler [Hunter] Relay Coupler [Behemoth] Plasma Cannon Plasma Cannon Plasma Cannon Plasma Cannon Heavy Ion Cannon Improved Grenade Launcher Remote Datajack Great Axe [Rating: 52] Favorites ----------- Power Improved Ion Engine Engine Improved Ion Engine Power Core Light Nuclear Core Propulsion Advanced Treads Treads Advanced Treads Leg Carbon-fiber Leg Utility Advanced Targeting Computer Device Improved Heat Sink Storage Huge Storage Unit Processor Advanced Targeting Computer Hackware Hacking Suite Protection Improved Light Armor Plating Weapon Heavy Ion Cannon Energy Gun Heavy Particle Gun Energy Cannon Heavy Ion Cannon Ballistic Gun Improved Assault Rifle Launcher Advanced EMP Blaster Special Weapon Remote Datajack Slashing Weapon Great Axe Piercing Weapon Spear Build | -11 -10 -10 -9 -9 -9 -8 -8 -8 -8 -7 -7 -7 -7 ------- Run | Yrd Mat Min Mat Min Exi Min Mat Gar Mat Fac Gar Fac Low Slots Evolved 6 | . . . 2 . . . 2 . . 2 . . . Power . | . . . . . . . . . . . . . . Propulsion 2 | . . . . . . . 1 . . 1 . . . Utility 3 | . . . 2 . . . 1 . . . . . . Weapon 1 | . . . . . . . . . . 1 . . . Parts Attached 184 | 6 13 3 34 1 . 1 13 15 37 15 10 30 6 Power 27 | 1 4 1 5 . . . 1 2 7 3 . 2 1 Engine 26 | 1 3 1 5 . . . 1 2 7 3 . 2 1 Core 1 | . 1 . . . . . . . . . . . . Reactor . | . . . . . . . . . . . . . . Propulsion 50 | 2 . 2 7 . . . 3 10 10 1 5 9 1 Treads 47 | 2 . 2 7 . . . 3 10 10 1 5 6 1 Leg 3 | . . . . . . . . . . . . 3 . Wheel . | . . . . . . . . . . . . . . Hover . | . . . . . . . . . . . . . . Flight . | . . . . . . . . . . . . . . Utility 51 | 1 4 . 11 . . . 7 1 9 4 4 9 1 Device 12 | . 2 . . . . . 2 . 2 2 . 3 1 Storage 8 | 1 2 . 2 . . . . . 1 1 . 1 . Processor 9 | . . . 3 . . . 2 . 1 1 . 2 . Hackware 7 | . . . 1 . . . . . 1 . 4 1 . Protection 15 | . . . 5 . . . 3 1 4 . . 2 . Artifact . | . . . . . . . . . . . . . . Weapon 56 | 2 5 . 11 1 . 1 2 2 11 7 1 10 3 Energy Gun 9 | 1 2 . 1 . . . . . 4 1 . . . Energy Cannon 17 | . 1 . 3 . . 1 1 . 2 3 1 4 1 Ballistic Gun 17 | 1 1 . 5 . . . 1 1 4 2 . 2 . Ballistic Cannon . | . . . . . . . . . . . . . . Launcher 10 | . 1 . 2 1 . . . . 1 . . 4 1 Special Weapon 1 | . . . . . . . . . . 1 . . . Impact Weapon . | . . . . . . . . . . . . . . Slashing Weapon 1 | . . . . . . . . 1 . . . . . Piercing Weapon 1 | . . . . . . . . . . . . . 1 Special Melee Weapon . | . . . . . . . . . . . . . . Unidentified Prototypes 10 | . . . 1 . . . 1 . 5 2 . 1 . Corrupted Parts 2 | . . . . . . . . . . . . 2 . System Corruption 20 | . . . . . . . . . . . . 20 . Parts Lost 44 | . 3 . 6 . . . 2 . 11 . 2 17 3 Power 6 | . 2 . . . . . . . 3 . . 1 . Propulsion 16 | . . . 2 . . . . . 2 . 2 8 2 Utility 10 | . . . 2 . . . 2 . 4 . . 2 . Weapon 12 | . 1 . 2 . . . . . 2 . . 6 1 Highest Loss Streak 7 | . 3 . 3 . . . 1 . 7 . 1 4 3 To Critical Strikes . | . . . . . . . . . . . . . . Average Backups 21 | 3 11 15 18 22 24 24 23 24 24 23 23 21 18 Power 1 | . . 1 1 2 2 2 2 1 . 1 1 1 1 Propulsion 4 | 1 3 3 4 5 5 5 4 5 5 4 2 1 . Utility 8 | . 4 6 5 6 8 8 7 8 9 10 10 10 13 Weapon 6 | 1 3 4 6 7 7 8 8 7 7 7 8 6 2 Tool/Special . | . . . . . . . . . . . . . . Unused Backups 70 | . 9 1 14 . 3 . 1 9 13 2 3 2 13 Power 5 | . . . 2 . 1 . . . 1 . . . 1 Propulsion 13 | . 2 . 3 . . . . 1 6 . . . 1 Utility 31 | . 6 . 1 . 1 . 1 3 2 1 3 2 11 Weapon 19 | . 1 1 8 . . . . 5 4 . . . . Tool/Special 2 | . . . . . 1 . . . . 1 . . . Average Slot Usage (%) 97 | . 93 100 99 100 100 100 98 90 97 99 100 93 95 Engine 9 | . 8 14 11 11 11 11 9 9 8 6 7 6 7 Treads 24 | . 28 28 22 22 22 22 26 27 26 29 30 24 3 Device 6 | . 8 14 3 . . . 7 . 5 11 13 13 11 Storage 9 | . 14 14 11 11 11 11 9 9 9 7 7 7 7 Processor 13 | . . . 18 22 22 22 20 18 13 8 7 10 15 Hackware 3 | . . . 5 . . . . . 4 7 8 3 . Protection 6 | . . . 5 11 11 11 8 17 12 2 . . 3 Energy Gun 1 | . 9 . . . . . . . 4 . . . . Energy Cannon 9 | . 3 14 11 11 11 10 8 . 2 14 14 14 11 Ballistic Gun 9 | . 14 14 10 11 11 11 8 8 8 6 6 6 1 Peak Build Rating 52 | 6 12 12 27 28 29 29 35 42 49 52 52 49 46 Average Rating 34 | 4 8 11 21 27 28 28 34 39 41 48 47 44 44 On Entrance 28 | . 6 8 12 27 28 29 29 35 40 40 52 45 44 Avg Prop Armor Cover (%) 8 | . . . . . . . . . . . . . 8 Naked Turns . | . . . . . . . . . . . . . . Heaviest Build 127 | 11 31 34 97 97 97 97 114 115 107 118 120 126 127 Greatest Support 90 | 40 40 40 45 45 45 45 67 64 66 86 86 90 40 Greatest Overweight (x) 35 | . . . 2 2 2 2 1 1 2 1 1 35 5 Average Overweight (x) 1 | . . . . 2 2 2 1 1 1 1 1 1 2 Largest Inventory Capacity 25 | 8 15 15 25 25 25 25 25 25 25 25 25 25 25 Average Capacity 23 | 7 13 15 19 25 25 25 25 25 25 25 25 25 25 Most Carried 25 | 5 15 15 22 25 25 25 25 25 25 25 25 25 21 Average Carried 21 | 3 11 14 18 22 24 25 24 24 24 24 24 22 19 Final Capacity 25 | 8 15 15 25 25 25 25 25 25 25 25 25 25 25 Final Carried 25 | 5 15 15 22 25 25 25 25 25 25 25 25 17 21 Class Distribution -------------------- 42% | Mutant 27% | Bothacker-Skirmisher 20% | Bothacker-Mutant 7% | Scavenger-Mutant Dominant Class ---------------- Mutant | -10/Materials Scavenger-Mutant | -10/Mines Mutant | -9/Materials Mutant | -9/Mines Mutant | -9/Exiles Mutant | -8/Mines Mutant | -8/Materials Mutant | -8/Garrison Bothacker-Mutant | -8/Materials Bothacker-Skirmisher | -7/Factory Bothacker-Skirmisher | -7/Garrison Bothacker-Skirmisher | -7/Factory Bothacker-Mutant | -7/Lower Caves Resources | -11 -10 -10 -9 -9 -9 -8 -8 -8 -8 -7 -7 -7 -7 ----------- Run | Yrd Mat Min Mat Min Exi Min Mat Gar Mat Fac Gar Fac Low Matter Collected 5137 | 194 252 49 636 57 . 30 467 315 1022 307 619 979 210 Remotely . | . . . . . . . . . . . . . . Salvage Created 10264 | . 507 54 1949 92 . 18 1076 866 2036 390 783 2208 285 Parts 564 | . 37 4 123 5 . 7 48 69 93 18 50 95 15 Haulers Intercepted 10 | . 1 . 5 . . . . . 4 . . . . Recyclers Shooed 6 | . . . 5 . . . . . 1 . . . . Parts Field Recycled . | . . . . . . . . . . . . . . Retrieved Matter . | . . . . . . . . . . . . . . Parts Self-Destructed 6 | . . . . . . . . . . . . . 6 Prevented 1 | . . . . . . . . . . . . . 1 Parts Restored . | . . . . . . . . . . . . . . Kills | -11 -10 -10 -9 -9 -9 -8 -8 -8 -8 -7 -7 -7 -7 ------- Run | Yrd Mat Min Mat Min Exi Min Mat Gar Mat Fac Gar Fac Low Combat Hostiles Destroyed 216 | . 13 1 33 9 . 3 18 26 33 3 28 39 10 Guns 68 | . 8 1 4 3 . . 2 19 22 . 3 6 . Cannons 70 | . 2 . 20 2 . . 9 2 9 3 8 14 1 AOE 77 | . 3 . 9 4 . 3 7 5 2 . 17 18 9 Classes Destroyed 19 | . 6 1 4 1 . . 2 2 1 . . 2 . Worker 9 | . 2 . 3 . . . 1 . 1 . . 2 . Builder 4 | . . . . . . . 1 . . 2 . 1 . Tunneler 4 | . 1 . . . . . 1 . . 2 . . . Hauler 10 | . 1 . 5 . . . . . 4 . . . . Recycler 20 | . . . 6 . . . 5 . 2 1 . 6 . Mechanic 2 | . . . . . . . . . . . . 2 . Operator 3 | . . . 2 . . . . . . . . 1 . Watcher 14 | . 2 . 4 . . . 1 . 2 2 . 3 . Swarmer 69 | . 6 . 12 4 . 3 4 10 2 . 17 5 6 Cutter 2 | . . . . . . . . 2 . . . . . Grunt 82 | . 7 . 11 . . . 10 4 21 . 8 18 3 Brawler 1 | . . . 1 . . . . . . . . . . Duelist 8 | . . . 1 . . . . . 2 . . 5 . Protector 2 | . . . . . . . . . . . . 2 . Sentry 34 | . . 1 8 . . . 3 8 7 . 3 3 1 Hunter 4 | . . . . . . . 1 . . 1 . 2 . Programmer 8 | . . . . . . . . 2 . 2 . 4 . Heavy 1 | . . . . . . . . . 1 . . . . Assembled 5 | . . . . 5 . . . . . . . . . Best Kill Streak 15 | . 4 1 6 4 . 3 7 14 5 3 14 15 9 Combat Bots Only 14 | . 3 1 6 4 . 3 6 14 4 1 14 13 9 Max Kills in Single Turn 4 | . 2 1 3 4 . 3 3 3 1 2 3 4 2 Gunslinging . | . . . . . . . . . . . . . . Exploded 4 | . 2 . 2 4 . 3 2 3 1 . 3 4 2 Melee . | . . . . . . . . . . . . . . Uniques/NPCs Destroyed . | . . . . . . . . . . . . . . Combat | -11 -10 -10 -9 -9 -9 -8 -8 -8 -8 -7 -7 -7 -7 -------- Run | Yrd Mat Min Mat Min Exi Min Mat Gar Mat Fac Gar Fac Low Hostile Shots Fired 1111 | . 65 1 119 14 . 3 95 92 212 24 136 255 95 Missed 344 | . 17 1 32 4 . 1 34 23 57 9 46 80 40 Hits 767 | . 48 . 87 10 . 2 61 69 155 15 90 175 55 Melee 23 | . . . 1 . . . . . 10 . . 12 . Projectile 744 | . 48 . 86 10 . 2 61 69 145 15 90 163 55 AOE 2 | . 1 . . . . . . 1 . . . . . Critical Strikes 33 | . 1 . 1 . . . 5 1 10 3 2 8 2 Actively Blocked 2 | . . . . . . . . . 1 1 . . . Damage Taken 11877 | . 640 . 1164 99 . 16 695 821 3176 225 1328 3024 689 Core 1497 | . 137 . 96 26 . . 103 119 311 31 162 389 123 Absorbed by Shields 90 | . . . . . . . 88 . . . 2 . . Redirected to Shielding 30 | . . . . . . . . . 21 9 . . . Ignored by Resistances 160 | . . . . . . . 42 68 . . . 12 38 Regen/Repaired (Parts) 357 | . . . 106 . . . 87 . 164 . . . . Core Remaining (%) 54 | 100 . 45 . . . 69 . . 3 . . . . Volleys Fired 569 | . 50 3 100 10 . 2 56 14 116 26 70 107 15 Largest 3 | . 2 2 2 2 . 2 2 2 2 3 3 3 2 Hottest 183 | . 80 80 98 91 . 91 100 100 103 183 166 173 149 Shots Fired 1240 | . 93 7 193 19 . 3 105 85 258 65 124 266 22 Gun 636 | . 84 3 93 9 . 1 49 71 195 19 27 82 3 Cannon 519 | . 7 4 93 9 . 1 49 11 61 40 71 160 13 Launcher 64 | . 2 . 7 1 . 1 7 3 2 . 11 24 6 Special 21 | . . . . . . . . . . 6 15 . . Kinetic 551 | . 48 3 93 9 . 1 49 71 146 19 27 82 3 Thermal 585 | . 29 4 93 9 . 1 49 11 110 40 71 160 8 Explosive 57 | . 2 . 7 1 . 1 7 3 2 . 11 17 6 Electromagnetic 26 | . 14 . . . . . . . . . . 7 5 Robot Hit Streak 34 | . 8 5 25 8 . 11 13 25 34 13 14 29 4 Robot Miss Streak 5 | . 4 2 2 1 . . 3 3 5 1 2 2 1 Penetration Max . | . . . . . . . . . . . . . . Secondary Targets . | . . . . . . . . . . . . . . Autonomous 102 | . . . . . . . . 68 34 . . . . Shots Hit Robots 819 | . 52 4 130 13 . 3 71 60 194 42 57 179 14 Core Hits 460 | . 29 1 62 10 . 3 43 32 82 12 44 117 25 Critical Kills 6 | . . 1 . . . . . . 4 . . 1 . Critical Parts Destroyed 5 | . . . 1 . . . . 1 2 . . . 1 Critical Strikes 14 | . 1 1 1 . . . . 2 7 . . 1 1 Burn 2 | . 1 . . . . . . . 1 . . . . Destroy 12 | . . 1 1 . . . . 2 6 . . 1 1 Melee Attacks 2 | . . . . . . . . 1 1 . . . . Impact . | . . . . . . . . . . . . . . Slashing 2 | . . . . . . . . 1 1 . . . . Piercing . | . . . . . . . . . . . . . . Sneak Attacks . | . . . . . . . . . . . . . . Combat Hostiles . | . . . . . . . . . . . . . . Follow-up Attacks . | . . . . . . . . . . . . . . Damage Inflicted 25006 | . 749 46 2812 407 . 160 2314 2089 4144 958 2363 7617 1347 Guns 7744 | . 543 12 685 96 . 13 506 1641 2819 168 172 1037 52 Cannons 8745 | . 89 34 1549 142 . 20 899 50 1192 790 764 2943 273 Explosions 8459 | . 117 . 578 169 . 127 909 398 112 . 1427 3600 1022 Melee . | . . . . . . . . . . . . . . Ramming 58 | . . . . . . . . . 21 . . 37 . Kinetic 6825 | . 248 12 685 96 . 13 506 1641 2195 168 172 1037 52 Thermal 9586 | . 227 34 1549 142 . 20 899 50 1816 790 764 3046 249 Explosive 7874 | . 117 . 578 169 . 127 909 398 112 . 1427 3086 951 Electromagnetic 663 | . 157 . . . . . . . . . . 411 95 Impact . | . . . . . . . . . . . . . . Slashing . | . . . . . . . . . . . . . . Piercing . | . . . . . . . . . . . . . . Highest Corruption 22 | . 2 2 . . . . . 1 8 2 2 22 22 Average Corruption 4 | . 1 2 . . . . . 1 7 2 2 2 22 Corruption Purged . | . . . . . . . . . . . . . . Corruption Blocked . | . . . . . . . . . . . . . . Effects 225 | . 7 5 . . . . . 10 106 3 29 36 29 Message Errors 54 | . 2 2 . . . . . 1 26 1 9 5 8 Matter Fused 60 | . 1 . . . . . . 4 26 1 9 9 10 Heat Flow Errors 18 | . 3 . . . . . . . 10 . 2 3 . Energy Discharges 24 | . . . . . . . . . 12 . 3 5 4 Parts Rejected 2 | . . . . . . . . . 1 . . . 1 Parts Fused 2 | . . . . . . . . . 2 . . . . Data Loss (minor) 35 | . 1 2 . . . . . 4 12 . 3 11 2 Data Loss (major) 10 | . . . . . . . . 1 5 . 1 1 2 Misfires 6 | . . 1 . . . . . . 3 . 2 . . Alerts 9 | . . . . . . . . . 6 1 . 2 . Weapon Failures 5 | . . . . . . . . . 3 . . . 2 Overload Shots . | . . . . . . . . . . . . . . Overflow Damage 499 | . . . 60 10 . . 23 15 26 60 65 230 10 Projectiles 212 | . . . . . . . 5 . 4 60 25 117 1 Explosions 287 | . . . 60 10 . . 18 15 22 . 40 113 9 Melee . | . . . . . . . . . . . . . . Knockbacks . | . . . . . . . . . . . . . . Impact . | . . . . . . . . . . . . . . Kinetic . | . . . . . . . . . . . . . . Secondary . | . . . . . . . . . . . . . . Self-Inflicted Damage 678 | . . . 71 . . . . . 8 . 11 516 72 Shots 19 | . . . 2 . . . . . 1 . 1 13 2 Rammed 8 | . . . . . . . . . 4 . . 4 . Targets Rammed 8 | . . . . . . . . . 4 . . 4 . Kicked . | . . . . . . . . . . . . . . Crushed . | . . . . . . . . . . . . . . Highest Temperature 369 | . 232 60 340 90 . 30 331 132 303 243 199 266 369 Average Temperature 78 | . 62 26 79 33 . 18 110 52 103 57 20 64 132 Received Heat Transfer 3562 | . 261 . 417 . . . 349 216 1179 . 273 648 219 Effects 6 | . . . . . . . 1 . 4 . . . 1 Energy Bleed 4 | . . . . . . . 1 . 2 . . . 1 Interference 2 | . . . . . . . . . 2 . . . . Siege Activations . | . . . . . . . . . . . . . . Martial Activations . | . . . . . . . . . . . . . . Shielding Activations . | . . . . . . . . . . . . . . Robots Disrupted . | . . . . . . . . . . . . . . Combat Hostiles . | . . . . . . . . . . . . . . Robots Corrupted 1 | . . . . . . . . . . . . 1 . Combat Hostiles 1 | . . . . . . . . . . . . 1 . Parts Fried 7 | . 2 . . . . . . . . . . 4 1 Impact Corruptions . | . . . . . . . . . . . . . . Robots Melted . | . . . . . . . . . . . . . . Combat Hostiles . | . . . . . . . . . . . . . . Parts Melted 16 | . . 1 2 . . . . . 3 4 1 4 1 Heat Transferred 16352 | . 666 74 2886 259 . 37 1480 74 3645 1114 1036 4681 400 Parts Sabotaged . | . . . . . . . . . . . . . . Parts Stolen . | . . . . . . . . . . . . . . Parts Stripped . | . . . . . . . . . . . . . . Power Chain Reactions 6 | . . . . . . . . . . . . 5 1 Alert | -11 -10 -10 -9 -9 -9 -8 -8 -8 -8 -7 -7 -7 -7 ------- Run | Yrd Mat Min Mat Min Exi Min Mat Gar Mat Fac Gar Fac Low Maximum Alert Level 4 | . . . 2 . . . 1 3 3 1 4 4 . Low Security (%) 42 | 100 100 100 70 100 . 100 86 5 . 69 4 . . Level 1 8 | . . . 15 . . . 13 8 1 30 18 . . Level 2 16 | . . . 13 . . . . 24 58 . 3 11 . Level 3 26 | . . . . . . . . 60 39 . 35 78 . Level 4 5 | . . . . . . . . . . . 37 9 . Level 5 . | . . . . . . . . . . . . . . High Security . | . . . . . . . . . . . . . . Max Security . | . . . . . . . . . . . . . . Peak Influence 1448 | . 96 20 500 100 . 78 262 1097 877 265 1440 1448 . Initial 756 | . . 9 . 58 . . . 168 534 265 10 756 . Average 451 | . 33 1 197 9 . 18 97 732 660 142 871 908 . Influence Increases 8197 | . 476 20 1106 100 . 78 604 929 1366 130 1550 1638 200 Destroy 0b10 Robot/C 4600 | . 260 20 660 80 . 60 360 520 760 60 740 880 200 Destroy 0b10 Robot/NC 355 | . 30 . 100 . . . 45 . 55 35 . 90 . Destroy Leader 862 | . 76 . 168 10 . 10 82 20 204 34 60 198 . Allied During Kill 201 | . . . . . . . . . 62 . 64 75 . Successful Hack 316 | . 38 . 35 . . . 11 35 69 . 56 72 . Select Force Hacks 90 | . 60 . . . . . 30 . . . . . . Disable Machine 330 | . . . . . . . 30 30 75 . 60 135 . Anti-Garrison Action 800 | . . . . . . . . 300 . . 500 . . Destroy Structure 373 | . 12 . 53 10 . 8 16 24 81 1 70 98 . Lose Combat Pursuer 270 | . . . 90 . . . 30 . 60 . . 90 . Influence Decreases 7374 | . 452 44 956 250 . 78 345 91 1879 699 125 1638 817 Entered New Map 2302 | . . 15 . 92 . . . 91 563 319 5 684 533 Time Decay 3654 | . 424 29 596 158 . 78 335 . 716 380 . 684 254 Lost Part 428 | . 28 . 60 . . . 10 . 110 . 20 170 30 Lost Ally 240 | . . . . . . . . . 40 . 100 100 . Purge Threat 750 | . . . 300 . . . . . 450 . . . . Squads Dispatched 36 | . 5 . 1 . . . 4 . 11 1 . 14 . Investigation 9 | . 4 . . . . . 1 . 2 . . 2 . Extermination 6 | . . . . . . . . . . 1 . 5 . Reinforcement 10 | . 1 . 1 . . . 1 . 5 . . 2 . Assault 8 | . . . . . . . . . 3 . . 5 . Garrison 3 | . . . . . . . 2 . 1 . . . . Intercept . | . . . . . . . . . . . . . . Searches Triggered . | . . . . . . . . . . . . . . Construction Impeded 2 | . . . . . . . 1 . 1 . . . . Haulers Reinforced . | . . . . . . . . . . . . . . Active Scanning Responses . | . . . . . . . . . . . . . . Cargo Convoy Interrupts . | . . . . . . . . . . . . . . Stealth | -11 -10 -10 -9 -9 -9 -8 -8 -8 -8 -7 -7 -7 -7 --------- Run | Yrd Mat Min Mat Min Exi Min Mat Gar Mat Fac Gar Fac Low Distress Signals 16 | . . . 3 3 . . 4 . 3 . . 3 . Communications Jammed 2 | . . . . . . . . . . . . 2 . Distress Signals 1 | . . . . . . . . . . . . 1 . Times Spotted 318 | . 21 2 46 9 . 3 26 24 58 7 42 66 14 Peak Tracking Total 12 | . 4 2 5 4 . 3 7 8 5 1 10 7 12 Tactical Retreats 15 | . . . 4 . . . 2 . 4 . . 5 . Traps | -11 -10 -10 -9 -9 -9 -8 -8 -8 -8 -7 -7 -7 -7 ------- Run | Yrd Mat Min Mat Min Exi Min Mat Gar Mat Fac Gar Fac Low Traps Triggered 18 | . 4 . . . . . . 3 2 1 7 1 . Indirectly . | . . . . . . . . . . . . . . Trap Hack Attempts . | . . . . . . . . . . . . . . Triggered . | . . . . . . . . . . . . . . Disarmed . | . . . . . . . . . . . . . . Reprogrammed . | . . . . . . . . . . . . . . Reused . | . . . . . . . . . . . . . . Traps Extracted . | . . . . . . . . . . . . . . Installed . | . . . . . . . . . . . . . . Triggered . | . . . . . . . . . . . . . . Machines | -11 -10 -10 -9 -9 -9 -8 -8 -8 -8 -7 -7 -7 -7 ---------- Run | Yrd Mat Min Mat Min Exi Min Mat Gar Mat Fac Gar Fac Low Machines Disabled 34 | . . . . . . . 2 7 5 . 9 9 2 Max in Single Turn 2 | . . . . . . . 2 1 1 . 1 1 1 Garrison Access 1 | . . . . . . . . . 1 . . . . Garrison Relay 10 | . . . . . . . . 5 . . 5 . . Machines Repaired . | . . . . . . . . . . . . . . Machines Dismantled . | . . . . . . . . . . . . . . Machines Sabotaged . | . . . . . . . . . . . . . . Overloaded Fab Kills . | . . . . . . . . . . . . . . Hacking | -11 -10 -10 -9 -9 -9 -8 -8 -8 -8 -7 -7 -7 -7 --------- Run | Yrd Mat Min Mat Min Exi Min Mat Gar Mat Fac Gar Fac Low Machines Accessed 56 | . 8 . 13 . 1 . 5 3 12 2 3 9 . Terminals 40 | . 6 . 10 . . . 2 3 9 1 3 6 . Fabricators 1 | . . . . . . . . . . . . 1 . Repair Stations 3 | . . . 1 . . . 1 . 1 . . . . Recycling Units 5 | . 2 . 1 . . . 1 . . . . 1 . Scanalyzers 3 | . . . 1 . . . . . 1 . . 1 . Garrison Access 3 | . . . . . . . 1 . 1 1 . . . Total Hacks 181 | . 27 . 60 . 1 . 14 6 46 3 8 16 . Successful 104 | . 15 . 34 . 1 . 9 3 30 2 4 6 . Failed 76 | . 12 . 25 . . . 5 3 16 1 4 10 . Catastrophic 6 | . 1 . . . . . . 1 . . 1 3 . Database Lockouts 1 | . . . 1 . . . . . . . . . . Manual 99 | . 18 . 30 . 1 . 7 1 28 2 4 8 . Terminals 130 | . 24 . 36 . . . 6 6 38 2 8 10 . Fabricators 2 | . . . . . . . . . . . . 2 . Repair Stations 19 | . . . 11 . . . 4 . 4 . . . . Recycling Units 9 | . 3 . 3 . . . 1 . . . . 2 . Scanalyzers 15 | . . . 10 . . . . . 3 . . 2 . Garrison Access 5 | . . . . . . . 3 . 1 1 . . . Terminal Hacks 33 | . 5 . 8 . 1 . . 3 11 . 4 1 . Record 1 | . . . 1 . . . . . . . . . . Prototype ID Bank 4 | . 3 . . . . . . . 1 . . . . Open Door 1 | . . . . . . . . 1 . . . . . Branch Access Points 2 | . . . . . . . . . 1 . . 1 . Emergency Access Points 3 | . . . 1 . . . . 1 . . 1 . . Terminal Index 4 | . 1 . 2 . . . . . 1 . . . . Repair Station Index 1 | . . . 1 . . . . . . . . . . Alert Level 2 | . . . 1 . . . . . 1 . . . . Unreport Threat 5 | . . . 2 . . . . . 3 . . . . Security Status 1 | . . . . . . . . . 1 . . . . Patrol Status 1 | . . . . . . . . . 1 . . . . Recall Reinforcements 1 | . . . . . . . . . 1 . . . . Registered Components 1 | . . . . . . . . . 1 . . . . Zone Layout 1 | . 1 . . . . . . . . . . . . Garrison Registry 2 | . . . . . . . . 1 . . 1 . . Patrol Navigation 1 | . . . . . . . . . . . 1 . . Security Stations 1 | . . . . . . . . . . . 1 . . Proto ID Catalog 1 | . . . . . 1 . . . . . . . . Fabricator Hacks . | . . . . . . . . . . . . . . Repair Station Hacks 15 | . . . 8 . . . 4 . 3 . . . . Scan Component 8 | . . . 4 . . . 2 . 2 . . . . Repair 7 | . . . 4 . . . 2 . 1 . . . . Recycling Unit Hacks . | . . . . . . . . . . . . . . Scanalyzer 10 | . . . 5 . . . . . 3 . . 2 . Retrieve Study 10 | . . . 5 . . . . . 3 . . 2 . Garrison Access Hacks 3 | . . . . . . . 1 . 1 1 . . . Unlock Access 3 | . . . . . . . 1 . 1 1 . . . Unauthorized Hacks 42 | . 10 . 13 . . . 4 . 11 1 . 3 . Terminals 39 | . 8 . 13 . . . 3 . 11 1 . 3 . Botnet 13 | . 3 . 3 . . . 1 . 4 . . 2 . Skim 26 | . 5 . 10 . . . 2 . 7 1 . 1 . Fabricators . | . . . . . . . . . . . . . . Repair Stations . | . . . . . . . . . . . . . . Recycling Units 3 | . 2 . . . . . 1 . . . . . . Tunnel 3 | . 2 . . . . . 1 . . . . . . Scanalyzers . | . . . . . . . . . . . . . . Garrison Access . | . . . . . . . . . . . . . . Data Cores Recovered 1 | . . . 1 . . . . . . . . . . Used . | . . . . . . . . . . . . . . Hacking Detections 49 | . 7 . 13 . . . 3 1 11 2 3 9 . Full Trace Events 2 | . . . . . . . . . . . 1 1 . Feedback Events . | . . . . . . . . . . . . . . Feedback Blocked . | . . . . . . . . . . . . . . Robot Schematics Acquired . | . . . . . . . . . . . . . . Robots Built . | . . . . . . . . . . . . . . Authchips . | . . . . . . . . . . . . . . Time . | . . . . . . . . . . . . . . Total Robot Build Rating . | . . . . . . . . . . . . . . Part Schematics Acquired . | . . . . . . . . . . . . . . Parts Built . | . . . . . . . . . . . . . . Authchips . | . . . . . . . . . . . . . . Time . | . . . . . . . . . . . . . . Total Part Build Rating . | . . . . . . . . . . . . . . Part Studies Acquired 10 | . . . 5 . . . . . 3 . . 2 . Parts Repaired 7 | . . . 4 . . . 2 . 1 . . . . Time 231 | . . . 104 . . . 89 . 38 . . . . Parts Recycled . | . . . . . . . . . . . . . . Recycled Matter . | . . . . . . . . . . . . . . Retrieved Matter . | . . . . . . . . . . . . . . Retrieved Components . | . . . . . . . . . . . . . . Parts Scanalyzed . | . . . . . . . . . . . . . . Part Schematics Acquired . | . . . . . . . . . . . . . . Parts Damaged . | . . . . . . . . . . . . . . Bothacking | -11 -10 -10 -9 -9 -9 -8 -8 -8 -8 -7 -7 -7 -7 ------------ Run | Yrd Mat Min Mat Min Exi Min Mat Gar Mat Fac Gar Fac Low Used RIF Installer 2 | . . . . . . . . 1 . . 1 . . Alert ID Control 1 | . . . . . . . . . . . 1 . . Robots Hacked 4 | . . . . . . . . . . 2 2 . . Non-combat 2 | . . . . . . . . . . 2 . . . Combat 2 | . . . . . . . . . . . 2 . . Robot Hacks Applied 6 | . . . . . . . . . . 4 2 . . parse_system 2 | . . . . . . . . . . 2 . . . no_distress 1 | . . . . . . . . . . 1 . . . ignore_repairs 1 | . . . . . . . . . . 1 . . . formatsys_high 2 | . . . . . . . . . . . 2 . . Relay Couplers Released 44 | . . . . . . . . 22 1 . 21 . . Machine Destruction 41 | . . . . . . . . 22 1 . 18 . . Programmers 3 | . . . . . . . . . . . 3 . . Attached 4 | . . . . . . . . . . . 4 . . Fabnet Peak Effective % . | . . . . . . . . . . . . . . Robots Rewired 6 | . . . . . . . . . . . 6 . . Allies Hacked 1 | . . . . . . . . . . . . 1 . Hacks Repelled . | . . . . . . . . . . . . . . Allies | -11 -10 -10 -9 -9 -9 -8 -8 -8 -8 -7 -7 -7 -7 -------- Run | Yrd Mat Min Mat Min Exi Min Mat Gar Mat Fac Gar Fac Low Total Allies 12 | . . . . . . . . 2 . . 10 . . Largest Group 5 | . . . . . . . . 2 2 . 5 5 . Highest-Rated Group 140 | . . . . . . . . 78 78 . 140 126 . Highest-Rated Ally 62 | . . . . . . . . 39 39 . 62 62 . Total Orders . | . . . . . . . . . . . . . . Ally Attacks 178 | . . . . . . . . . 57 . 40 81 . Total Damage 2483 | . . . . . . . . . 457 . 1008 1018 . Kills 24 | . . . . . . . . . 7 . 9 8 . Allies Corrupted . | . . . . . . . . . . . . . . Allies Melted . | . . . . . . . . . . . . . . Intel | -11 -10 -10 -9 -9 -9 -8 -8 -8 -8 -7 -7 -7 -7 ------- Run | Yrd Mat Min Mat Min Exi Min Mat Gar Mat Fac Gar Fac Low Active Infowar (turns) 7693 | . 732 379 1135 . . . 276 . . 462 1554 2600 555 Terrain 2165 | . 75 . . . . . 276 . . . . 1259 555 Seismic 2171 | . 657 379 1135 . . . . . . . . . . Jamming 3357 | . . . . . . . . . . 462 1554 1341 . Robot Analysis Total . | . . . . . . . . . . . . . . Derelict Logs Recovered 2 | . . 1 . 1 . . . . . . . . . Drone Launches . | . . . . . . . . . . . . . . Drone Recoveries . | . . . . . . . . . . . . . . Exploration | -11 -10 -10 -9 -9 -9 -8 -8 -8 -8 -7 -7 -7 -7 ------------- Run | Yrd Mat Min Mat Min Exi Min Mat Gar Mat Fac Gar Fac Low Turns Passed 20008 | 82 1246 379 3578 1523 837 359 1189 1270 3314 883 2057 2736 555 Spaces Moved 7449 | 54 572 222 1394 317 268 112 346 537 1205 376 908 977 161 Core 22 | 18 . . . . . . . . . . . 4 . Treads 7236 | 36 572 222 1394 317 268 112 346 537 1205 376 908 942 1 Legs 191 | . . . . . . . . . . . . 31 160 Wheels . | . . . . . . . . . . . . . . Hover . | . . . . . . . . . . . . . . Flight . | . . . . . . . . . . . . . . Fastest Speed 50 | 50 160 160 160 312 312 312 216 208 185 201 196 196 260 Average Speed 214 | 123 160 160 213 312 312 312 219 208 200 201 197 223 289 Slowest Speed 1800 | 160 160 160 312 312 312 312 230 216 225 201 208 1800 360 Overloaded Moves . | . . . . . . . . . . . . . . Propulsion Burnouts . | . . . . . . . . . . . . . . Robots Hopped . | . . . . . . . . . . . . . . Potential Cave-ins 3 | . . . . . . . . . 3 . . . . Cave-ins Triggered 1 | . . . . . . . . . 1 . . . . Exploration Rate (%) 52 | 4 94 49 79 65 68 32 34 70 91 12 81 31 27 Regions Visited 13 Branch Regions 5 Pre-discovered Areas 7 | . 3 . 1 . . . 1 . 2 . . . . Known Exits Taken 6 | . . 1 . . . 1 1 . 1 1 . 1 . Unknown Exits Taken 5 | 1 1 . 1 1 1 . . . . . . . . Scrap Searched 5 | . . . . 1 . 1 . . . . . . 3 Spaces Dug 42 | . 11 . 20 . . . . . 5 1 . 5 . Terrain Destroyed 328 | . 11 . 45 10 . 12 14 16 55 1 33 113 18 Melee . | . . . . . . . . . . . . . . Projectile 61 | . . . . . . . 4 10 33 1 3 10 . AOE 267 | . 11 . 45 10 . 12 10 6 22 . 30 103 18 Terrain Rammed . | . . . . . . . . . . . . . . Walls Destroyed . | . . . . . . . . . . . . . . Machines Disabled . | . . . . . . . . . . . . . . Actions | -11 -10 -10 -9 -9 -9 -8 -8 -8 -8 -7 -7 -7 -7 --------- Run | Yrd Mat Min Mat Min Exi Min Mat Gar Mat Fac Gar Fac Low Total 10565 | 69 825 244 1843 833 272 119 687 694 1904 459 1070 1319 227 Wait 1831 | . 149 8 229 502 . 4 247 43 420 13 37 147 32 Move 7438 | 53 571 221 1393 316 267 111 346 536 1204 376 907 976 161 Hop . | . . . . . . . . . . . . . . Pick Up 224 | 10 25 3 42 3 2 . 10 29 50 9 7 25 9 Fast Attach 32 | 1 2 . 2 . . . 3 4 12 6 . 2 . Attach 84 | 5 5 . 10 . . . 4 9 17 2 2 26 4 Detach 4 | . 2 . 1 . . . . . 1 . . . . Swap 149 | . 7 3 27 2 . 2 14 15 22 11 27 16 3 Drop 209 | . 14 6 39 . 3 . 7 43 57 16 6 15 3 Fire 569 | . 50 3 100 10 . 2 56 14 116 26 70 107 15 Melee 2 | . . . . . . . . 1 1 . . . . Ram . | . . . . . . . . . . . . . . Kick . | . . . . . . . . . . . . . . Crush 8 | . . . . . . . . . 4 . . 4 . Escape Stasis 14 | . . . . . . . . . . . 14 . . Rewire 1 | . . . . . . . . . . . . 1 . Trap . | . . . . . . . . . . . . . . Miscellaneous . | . . . . . . . . . . . . . . Route ------- -11/Scrapyard -10/Materials (discovered 5 exits: *Mat x3 / [*Min x2]) -10/Mines (discovered 2 exits: *Mat / Sub) -9/Materials (discovered 4 exits: *Mat x2 / [*Min] / *Sto) -9/Mines (discovered 3 exits: *Mat x2 / *Exi) -9/Exiles -8/Mines -8/Materials (discovered 2 exits: *Fac / Gar) -8/Garrison (discovered 4 exits: *Mat x4) -8/Materials (discovered 3 exits: *Fac x3) -7/Factory (discovered 5 exits: *Fac x2 / *Low x2 / Gar) -7/Garrison (discovered 3 exits: *Fac x3) -7/Factory (discovered 2 exits: *Low x2) -7/Lower Caves History --------- Turn | Location | Event 3 | -11/Scrapyard | Discovered new exit (range 16) 83 | -11/Scrapyard | Entered Materials 312 | -10/Materials | Build established: Mutant 427 | -10/Materials | Discovered new exit (range 16) 581 | -10/Materials | Lost 3 parts (2p1w) 615 | -10/Materials | Discovered new exit (range 7) 688 | -10/Materials | Discovered new exit (range 14) 769 | -10/Materials | Core integrity fell below 50% 829 | -10/Materials | Discovered new exit (range 14) 919 | -10/Materials | Learned location of Recycling (-9) 988 | -10/Materials | Learned Storage machine intel 1049 | -10/Materials | Learned location of 2 exits from Subcaves 1098 | -10/Materials | Loaded intel: 18 trap records 1181 | -10/Materials | Learned location of 1 exit from Storage 1239 | -10/Materials | Learned location of 2 exits from Mines 1273 | -10/Materials | Discovered new exit (range 15) 1329 | -10/Materials | Entered Mines 1330 | -10/Mines | Identified exit to Subcaves 1330 | -10/Mines | Identified exit to Materials 1347 | -10/Mines | Joined a pair of Derelicts in attacking an 0b10 outpost 1667 | -10/Mines | Build established: Scavenger-Mutant 1708 | -10/Mines | Entered Materials 1708 | -9/Materials | Evolved 2 slots: Utility x2 1709 | -9/Materials | Identified exit to Storage 2090 | -9/Materials | Central database locked down 2513 | -9/Materials | Lost 3 parts (1n1u1w) 2601 | -9/Materials | Repaired Signal Interpreter 2628 | -9/Materials | Repaired Lgt. Treads+ 2655 | -9/Materials | Repaired Grenade Launcher 2682 | -9/Materials | Repaired Lgt. Armor Plating 2721 | -9/Materials | Build established: Mutant 2995 | -9/Materials | Discovered new exit (range 5) 3788 | -9/Materials | Identified exit to Materials 3878 | -9/Materials | Learned 4 Recycling zone layouts 3912 | -9/Materials | Learned Storage machine intel 3943 | -9/Materials | Learned 2 Storage zone layouts 3986 | -9/Materials | Loaded intel: 2 recycling unit locations 5286 | -9/Materials | Entered Mines 5527 | -9/Mines | Assembled infested the area 5548 | -9/Mines | Learned Materials security intel 6794 | -9/Mines | Deemed a non-threat by the Exiles lab entrance 6797 | -9/Mines | Discovered new exit (range 5) 6809 | -9/Mines | Entered Exiles 6887 | -9/Exiles | Met 8R-AWN 6955 | -9/Exiles | Met EX-HEX 7045 | -9/Exiles | Met EX-BIN 7082 | -9/Exiles | Aligned with FarCom system 7086 | -9/Exiles | Given EX-Vault access code 7160 | -9/Exiles | Opened EX-Vault 7183 | -9/Exiles | Found AWS/Gauss 7247 | -9/Exiles | Warned to stay clear of 0b10 Research branches 7334 | -9/Exiles | Met EX-DEC 7609 | -9/Exiles | Discovered new exit (range 14) 7646 | -9/Exiles | Left Exiles lab with AWS/Gauss 7646 | -9/Exiles | Entered Mines 7974 | -8/Mines | Discovered exit to Materials (range 10) 8005 | -8/Mines | Entered Materials 8005 | -8/Materials | Evolved 2 slots: Propulsion x1, Utility x1 8137 | -8/Materials | Repaired Adv. Treads 8189 | -8/Materials | Repaired Imp. Assault Rifle 8636 | -8/Materials | Discovered new exit (range 4) 8644 | -8/Materials | Identified exit to Factory 8982 | -8/Materials | Garrison activated, responded to threat 9118 | -8/Materials | Garrison activated, responded to threat 9194 | -8/Materials | Identified exit to Garrison 9194 | -8/Materials | Entered Garrison 9226 | -8/Garrison | Triggered checkpoint 9285 | -8/Garrison | Garrison Relay disabled 9369 | -8/Garrison | Garrison Relay disabled 9371 | -8/Garrison | Garrison Relay disabled 9442 | -8/Garrison | Garrison Relay disabled 9446 | -8/Garrison | Garrison Relay disabled 9674 | -8/Garrison | Triggered checkpoint 9676 | -8/Garrison | Triggered checkpoint 9692 | -8/Garrison | Triggered checkpoint 9701 | -8/Garrison | Triggered checkpoint 9736 | -8/Garrison | Destroyed 14 combat bots 9928 | -8/Garrison | Discovered new exit (range 11) 9987 | -8/Garrison | Installed Relay Interface Framework 10068 | -8/Garrison | Triggered checkpoint 10091 | -8/Garrison | Discovered new exit (range 70) 10091 | -8/Garrison | Discovered new exit (range 26) 10091 | -8/Garrison | Discovered new exit (range 40) 10091 | -8/Garrison | Discovered new exit (range 49) 10273 | -8/Garrison | Rescued a captive Derelict 10274 | -8/Garrison | Rescued a captive Derelict 10291 | -8/Garrison | Build established: Bothacker-Mutant 10464 | -8/Garrison | Entered Materials 10464 | -8/Materials | Accompanied by 2 allies 10529 | -8/Materials | Crushed by falling debris 10743 | -8/Materials | Discovered exit to Factory (range 15) 11215 | -8/Materials | AWS/Gauss suddenly broke down 11654 | -8/Materials | Discovered exit to Factory (range 5) 11664 | -8/Materials | First assault squad dispatched 11690 | -8/Materials | Core integrity fell below 50% 12008 | -8/Materials | Repaired Adv. Treads+ 13432 | -8/Materials | Learned Storage trap positions 13434 | -8/Materials | Garrison activated, responded to threat 13479 | -8/Materials | Core integrity fell below 20% 13489 | -8/Materials | Learned Storage stockpile data 13500 | -8/Materials | Identified exit to Garrison 13537 | -8/Materials | Lost 7 parts (1p2n2u2w) 13577 | -8/Materials | Learned location of Extension (-4) 13608 | -8/Materials | Learned location of 1 exit from Recycling 13694 | -8/Materials | Learned 2 Storage zone layouts 13778 | -8/Materials | Entered Factory 13778 | -7/Factory | Evolved 2 slots: Propulsion x1, Weapon x1 13779 | -7/Factory | Identified exit to Factory 13779 | -7/Factory | Identified exit to Lower Caves 14131 | -7/Factory | Discovered exit to Factory (range 4) 14489 | -7/Factory | Build established: Bothacker-Skirmisher 14544 | -7/Factory | Discovered exit to Lower Caves (range 14) 14661 | -7/Factory | Identified exit to Garrison 14661 | -7/Factory | Entered Garrison 14689 | -7/Garrison | Triggered checkpoint 14755 | -7/Garrison | Triggered checkpoint 15075 | -7/Garrison | Learned Factory security intel 15132 | -7/Garrison | Triggered checkpoint 15228 | -7/Garrison | Lost 3 allies 15243 | -7/Garrison | Destroyed 14 combat bots 15295 | -7/Garrison | Garrison Relay disabled 15468 | -7/Garrison | Found embedded Infiltrators 15507 | -7/Garrison | Discovered new exit (range 10) 15703 | -7/Garrison | Discovered new exit (range 10) 15769 | -7/Garrison | Triggered checkpoint 15939 | -7/Garrison | Triggered checkpoint 15952 | -7/Garrison | Garrison Relay disabled 16093 | -7/Garrison | Triggered checkpoint 16119 | -7/Garrison | Garrison Relay disabled 16175 | -7/Garrison | Triggered checkpoint 16228 | -7/Garrison | Expanded RIF knowledge: Alert ID Control 16261 | -7/Garrison | Triggered checkpoint 16317 | -7/Garrison | Discovered new exit (range 11) 16317 | -7/Garrison | Discovered new exit (range 79) 16317 | -7/Garrison | Discovered new exit (range 45) 16317 | -7/Garrison | Garrison Relay disabled 16718 | -7/Garrison | Entered Factory 16718 | -7/Factory | Accompanied by 5 allies 18318 | -7/Factory | First assault squad dispatched 18573 | -7/Factory | Core integrity fell below 50% 18605 | -7/Factory | Lost 4 parts (1p3n) 19230 | -7/Factory | Lost 4 parts (2n1u1w) 19256 | -7/Factory | Core integrity fell below 20% 19288 | -7/Factory | Destroyed 13 combat bots 19323 | -7/Factory | System corruption reached 10% 19454 | -7/Factory | Entered Lower Caves 19667 | -7/Lower Caves | Found DCF Scrap (11 items) 19669 | -7/Lower Caves | Attracted the attention of an 0b10 checkpoint 19744 | -7/Lower Caves | Build established: Bothacker-Mutant 19997 | -7/Lower Caves | Attracted the attention of an 0b10 base 20009 | -7/Lower Caves | Destroyed self with Improved Grenade Launcher Last Messages --------------- 19995_ G-47 Trooper destroyed. 19995_ Machine disabled. 19996_ Critical hit (Burn: +37). 19996_ Outpost Terminal disabled. 19996_ Penetrated by Slug. 19997_ S-27 Virus destroyed. 19997_ Machine disabled. 19999_ Penetrated by Slug. 19999_ Carbon-fiber Leg destroyed. 19999_ S-27 Virus destroyed. 20000_ The unstable cave ceiling collapses. 20000_ Carbon-fiber Leg destroyed. 20000_ Critical hit (Burn: +37). 20007_ Unknown Ballistic Gun fries itself beyond repair. 20007_ S-27 Virus destroyed. 20009_ VTOL Module fries itself beyond repair. 20009_ G-47 Trooper destroyed. 20009_ Imp. Grenade Launcher+ destroyed. 20009_ Destroyed Imp. Grenade Launcher+. Map ----- +----------------------------------------------------+ | ??????????????????????????????????##???#??######?# | | ???????????????????????????????#?????####??###??## | | ??????????????????????????????##??####??####?###?# | | ??????????????????????????#????#?#######??######?# | | ?????????????????????????????##??#######?#####?### | | ?????????????????????#?####??####??##?#?#??###??#? | | ??????????????????????????###???###?###?#?######## | | ????????????????????????#?#######?#########??##?## | | ???????????????????#??########?##########??####### | | ???????????????????#??####?##?######???#?###?##### | | ?????????????????#?####?#?######################## | | ????????????????#?###### ############ ### ### | | ????????????????#??### #?## ###### #?# | | ???????????????##?## ? #### ####### ### # | | ??????????????##### ?#### ###### # #### | | ?????????????#?#### ##### #### #### ##?# | | ??????????????##### ?### #### # ### ### | | ???????????####### #### ### # | | ????????????#??## ##?# # ###### # | | ???????????###??# ## ## ############### ## | | ??????????#?#?### ## ###?#############? | | ??????????##?#?## ################## | | ??????????#?##### ##?############### | | ?????????#?####### #####?###########? | | ?????????##?# ## ############?# | | ??????????### g @ # ##?########### | | ??????????#?# ## # ### #?#### ?### | | ???????????## #"" %g """# ###?## ? ?## | | ??????????#?? # % % ""# ###??### #?## | | ????????????? # g "# ######## ??#### | | ???????????? ? ## "# ####### ??#???? | | ??????????#?# ?# Y "# ###?##??????????? | | ?????????????? + "# ## ? ????????? ? | | ????????????#??+ % " #? ## ?? ????????? | | ???????????#???# "" + ?? ? ?????????? | | ???????????????## " + ?#? ????????????? | | ????????????# ? %= " # ## ????????????? | | ???????????????#!% % " # ??# ?????????????? | | ???????????????# % ? """#? ##??????????????? | | ????????????????? "?????????????????????? | | ???????????????????? ? " ???????????????????? | | ???????????????????????#??#??????????????????????? | | ?????????????????????????????????????????????????? | | ?????????????????????????????????????????????????? | | ?????????????????????????????????????????????????? | | ?????????????????????????????????????????????????? | | ?????????????????????????????????????????????????? | | ?????????????????????????????????????????????????? | | ?????????????????????????????????????????????????? | | ?????????????????????????????????????????????????? | +----------------------------------------------------+ Best States ------------- Heat Dissipation 61 Energy Generation 18 Energy Capacity 310 Matter Stores 300 Matter Capacity 300 Sight Range 16 Terrain Scan Range 16 Terrain Scan Density 210 Jamming Range 12 Armor Coverage 375 Resistance: KI 30 Utility Shielding 66 Evasion (%) 40 Targeting Accuracy 16 Target Analysis 5 Recoil Reduction 4 Offensive Hacking 10 Relay Coupler Types 1 Relay Coupler Value 33 Item Schematics ----------------- None Robot Schematics ------------------ None Fabricated ------------ Nothing Repaired ---------- Signal Interpreter | 20% | -9/Materials Lgt. Treads | 64% | -9/Materials Grenade Launcher | 71% | -9/Materials Lgt. Armor Plating | 74% | -9/Materials Adv. Treads | 74% | -8/Materials Imp. Assault Rifle | 68% | -8/Materials Adv. Treads | 3% | -8/Materials Studied --------- Lgt. Treads | -9/Materials | Hacked Particle Cannon | -9/Materials | Hacked Assault Rifle | -9/Materials | Hacked Lgt. Assault Rifle | -9/Materials | Hacked Beam Cannon | -9/Materials | Hacked Adv. Treads | -8/Materials | Hacked Datajack | -8/Materials | Hacked Hvy. Assault Rifle | -8/Materials | Hacked Imp. Grenade Launcher | -7/Factory | Hacked Hvy. Ion Cannon | -7/Factory | Hacked Alien Tech Used ----------------- None Achievements -------------- None Challenges ------------ None Game ------ Seed MultinovaDeflectorBlade Manual? 0 Play Time 01:47:55 Cumulative 180.5 hours Start 2025.11.09 @ 21:03:19 End 2025.11.09 @ 22:49:52 Sessions 1 Manual Loads 0 Difficulty Rogue Special Mode None Game No. 124 Rogue 124 Adventurer 0 Explorer 0 Win Type - Total 6 Types 4/0/1/1/0/0/0/0/0/0 Lore% 82 Gallery% 74 Achievement% 54 Wizard Run 0 Options --------- Layout 1 ASCII 0 Keyboard 0 Movement Mouse Keybinds 0 Fullscreen 2 Font 24/Smallcaps Map View 50x35 Zoom Use 0% Tactical HUD 1 Map Filters NONE Filters NONE Steam 1 RUN: c47f6cd4-bcd9-4e81-ab41-eb56c2e838ed